[Event "*** Titled Tuesday 3|2 Blitz"]
[Site "Chess.com"]
[Date "2016.05.03"]
[Round "1"]
[White "Zhani-Z"]
[Black "Mischuk_D"]
[Result "1-0"]
[WhiteElo "2162"]
[BlackElo "2467"]
[TimeControl "180+2"]
[EndTime "11:10:21 PDT"]
[Termination "Zhani-Z won by checkmate"]

1. e4 {[%clk 0:02:48.3]} 1... e6 {[%clk 0:02:59.5]} 2. d4 {[%clk 0:02:48.8]}
2... d5 {[%clk 0:03:00.7]} 3. Nd2 {[%clk 0:02:50.3]} 3... Be7 {[%clk 0:03:01.7]}
4. c3 {[%clk 0:02:49.3]} 4... c5 {[%clk 0:02:57.5]} 5. dxc5 {[%clk 0:02:50.5]}
5... Nf6 {[%clk 0:02:58]} 6. exd5 {[%clk 0:02:46.1]} 6... Nxd5 {[%clk
0:02:58.9]} 7. Ne4 {[%clk 0:02:46.2]} 7... O-O {[%clk 0:02:56.3]} 8. Nf3 {[%clk
0:02:45.7]} 8... f5 {[%clk 0:02:57.2]} 9. Nd6 {[%clk 0:02:46.2]} 9... Bxd6
{[%clk 0:02:37.7]} 10. cxd6 {[%clk 0:02:46.9]} 10... Nc6 {[%clk 0:02:39.6]} 11.
Bc4 {[%clk 0:02:46.4]} 11... Qxd6 {[%clk 0:02:39.7]} 12. O-O {[%clk 0:02:46.6]}
12... Rd8 {[%clk 0:02:39.9]} 13. Qe2 {[%clk 0:02:45.8]} 13... h6 {[%clk
0:02:39.9]} 14. Re1 {[%clk 0:02:24.9]} 14... Na5 {[%clk 0:02:33.6]} 15. Bxd5
{[%clk 0:02:07.8]} 15... Qxd5 {[%clk 0:02:34.3]} 16. b3 {[%clk 0:02:02.8]} 16...
Nc6 {[%clk 0:02:32.9]} 17. c4 {[%clk 0:02:01.7]} 17... Qa5 {[%clk 0:02:33.3]}
18. Bb2 {[%clk 0:02:01]} 18... Qc7 {[%clk 0:02:27.8]} 19. Ne5 {[%clk 0:02:00.2]}
19... Nxe5 {[%clk 0:02:24.6]} 20. Bxe5 {[%clk 0:02:00.6]} 20... Qf7 {[%clk
0:02:24.1]} 21. Qf3 {[%clk 0:01:56.1]} 21... a5 {[%clk 0:02:18.1]} 22. Rad1
{[%clk 0:01:54.2]} 22... Re8 {[%clk 0:02:19.2]} 23. Rd6 {[%clk 0:01:45.6]} 23...
a4 {[%clk 0:01:53.8]} 24. b4 {[%clk 0:01:45.3]} 24... a3 {[%clk 0:01:55]} 25. h3
{[%clk 0:01:42.2]} 25... Ra4 {[%clk 0:01:54.8]} 26. Qb3 {[%clk 0:01:41.7]} 26...
Ra8 {[%clk 0:01:53.4]} 27. Red1 {[%clk 0:01:42.5]} 27... Qh5 {[%clk 0:01:43.2]}
28. c5 {[%clk 0:01:36.3]} 28... Kh7 {[%clk 0:01:32.9]} 29. R1d3 {[%clk
0:01:26.3]} 29... Qe2 {[%clk 0:01:32.5]} 30. Re3 {[%clk 0:01:23.5]} 30... Qb5
{[%clk 0:01:29.2]} 31. Rg3 {[%clk 0:01:18.4]} 31... Re7 {[%clk 0:01:29.5]} 32.
Qc3 {[%clk 0:01:15.8]} 32... f4 {[%clk 0:01:21.8]} 33. Rxg7+ {[%clk 0:01:10]}
33... Rxg7 {[%clk 0:01:22.1]} 34. Bxg7 {[%clk 0:01:11]} 34... Qe8 {[%clk
0:01:14.9]} 35. Be5 {[%clk 0:01:04.8]} 35... Qf7 {[%clk 0:01:14.7]} 36. Rd8
{[%clk 0:01:04.2]} 36... b5 {[%clk 0:01:12.9]} 37. Qd3+ {[%clk 0:00:44.5]} 37...
Qf5 {[%clk 0:01:13.2]} 38. Qxf5+ {[%clk 0:00:40.2]} 38... exf5 {[%clk
0:01:15.1]} 39. c6 {[%clk 0:00:40.9]} 39... Kg6 {[%clk 0:01:12.3]} 40. Bxf4
{[%clk 0:00:38.9]} 40... h5 {[%clk 0:01:13.3]} 41. h4 {[%clk 0:00:38.5]} 41...
Kf7 {[%clk 0:01:14]} 42. f3 {[%clk 0:00:35.4]} 42... Ke7 {[%clk 0:01:15.2]} 43.
c7 {[%clk 0:00:33.2]} 43... Ke6 {[%clk 0:01:12.3]} 44. Kf2 {[%clk 0:00:33.4]}
44... Ke7 {[%clk 0:01:13.5]} 45. Ke3 {[%clk 0:00:33.9]} 45... Ke6 {[%clk
0:01:14.8]} 46. Kd4 {[%clk 0:00:33.6]} 46... Ke7 {[%clk 0:01:16]} 47. Kc5 {[%clk
0:00:33.8]} 47... Ke6 {[%clk 0:01:17]} 48. Kc6 {[%clk 0:00:30.1]} 48... Ra6+
{[%clk 0:01:17]} 49. Kxb5 {[%clk 0:00:30.2]} 49... Ra8 {[%clk 0:01:17.9]} 50.
Kc5 {[%clk 0:00:29.7]} 50... Ke7 {[%clk 0:01:16]} 51. b5 {[%clk 0:00:30.6]}
51... Ke6 {[%clk 0:01:17.3]} 52. b6 {[%clk 0:00:30.4]} 52... Ra5+ {[%clk
0:01:18.4]} 53. Kb4 {[%clk 0:00:30.3]} 53... Ra8 {[%clk 0:01:18.4]} 54. Rxc8
{[%clk 0:00:31.2]} 54... Rxc8 {[%clk 0:00:34.4]} 55. b7 {[%clk 0:00:31.6]} 55...
Kd7 {[%clk 0:00:34.6]} 56. bxc8=Q+ {[%clk 0:00:31.3]} 56... Kxc8 {[%clk
0:00:35.8]} 57. Kxa3 {[%clk 0:00:32.3]} 57... Kb7 {[%clk 0:00:37.3]} 58. Kb4
{[%clk 0:00:33.6]} 58... Kc8 {[%clk 0:00:39.2]} 59. Kb5 {[%clk 0:00:34.7]} 59...
Kb7 {[%clk 0:00:41.1]} 60. Kc5 {[%clk 0:00:35.9]} 60... Kc8 {[%clk 0:00:42.6]}
61. Kb6 {[%clk 0:00:37.1]} 61... Kd7 {[%clk 0:00:43.8]} 62. Kb7 {[%clk
0:00:38.4]} 62... Ke6 {[%clk 0:00:45.3]} 63. c8=Q+ {[%clk 0:00:39.1]} 63... Kd5
{[%clk 0:00:47.2]} 64. a4 {[%clk 0:00:38.9]} 64... Kd4 {[%clk 0:00:49.1]} 65. a5
{[%clk 0:00:40]} 65... Kd3 {[%clk 0:00:51]} 66. a6 {[%clk 0:00:40.5]} 66... Ke2
{[%clk 0:00:52.9]} 67. Qc2+ {[%clk 0:00:40.3]} 67... Kf1 {[%clk 0:00:54.8]} 68.
Be3 {[%clk 0:00:40.6]} 68... Ke1 {[%clk 0:00:55.5]} 69. Qf2+ {[%clk 0:00:41.3]}
69... Kd1 {[%clk 0:00:56.5]} 70. Qd2# {[%clk 0:00:42.9]} 1-0

[Event "*** Titled Tuesday 3|2 Blitz"]
[Site "Chess.com"]
[Date "2016.05.03"]
[Round "1"]
[White "rasool78"]
[Black "SmoothAsAHedgehog"]
[Result "0-1"]
[WhiteElo "2179"]
[BlackElo "2531"]
[TimeControl "180+2"]
[EndTime "11:12:48 PDT"]
[Termination "SmoothAsAHedgehog won by resignation"]

1. e4 {[%clk 0:02:59]} 1... e5 {[%clk 0:02:55.1]} 2. Nf3 {[%clk 0:02:55.5]} 2...
Nc6 {[%clk 0:02:56.1]} 3. Bc4 {[%clk 0:02:55.8]} 3... Bc5 {[%clk 0:02:56.6]} 4.
d3 {[%clk 0:02:56.6]} 4... Nf6 {[%clk 0:02:57.5]} 5. Nc3 {[%clk 0:02:55.5]} 5...
d6 {[%clk 0:02:56.5]} 6. Be3 {[%clk 0:02:55.5]} 6... Bb6 {[%clk 0:02:55.8]} 7.
h3 {[%clk 0:02:50.8]} 7... h6 {[%clk 0:02:55.1]} 8. Bxb6 {[%clk 0:02:43]} 8...
axb6 {[%clk 0:02:53.8]} 9. O-O {[%clk 0:02:37.3]} 9... O-O {[%clk 0:02:49.5]}
10. d4 {[%clk 0:02:27.5]} 10... Re8 {[%clk 0:02:23.3]} 11. dxe5 {[%clk
0:02:14.3]} 11... Nxe5 {[%clk 0:02:15.7]} 12. Nxe5 {[%clk 0:02:14.7]} 12... dxe5
{[%clk 0:02:15.6]} 13. Qxd8 {[%clk 0:02:06.8]} 13... Rxd8 {[%clk 0:02:17.5]} 14.
Rad1 {[%clk 0:02:03.4]} 14... Be6 {[%clk 0:02:17.2]} 15. Bxe6 {[%clk 0:01:59.3]}
15... fxe6 {[%clk 0:02:19.1]} 16. a3 {[%clk 0:01:51.7]} 16... c6 {[%clk
0:02:19.9]} 17. f3 {[%clk 0:01:50.4]} 17... Kf7 {[%clk 0:02:20.3]} 18. Kf2
{[%clk 0:01:49]} 18... Ke7 {[%clk 0:02:20.9]} 19. Ne2 {[%clk 0:01:41.5]} 19...
b5 {[%clk 0:02:20.3]} 20. Nc1 {[%clk 0:01:33.2]} 20... Rf8 {[%clk 0:02:12.8]}
21. Kg1 {[%clk 0:01:28.5]} 21... Ra4 {[%clk 0:02:02.5]} 22. Nd3 {[%clk
0:01:21.7]} 22... Nd7 {[%clk 0:02:03.3]} 23. Rf2 {[%clk 0:01:14.5]} 23... Rc8
{[%clk 0:01:44.7]} 24. Rfd2 {[%clk 0:01:14]} 24... Rc7 {[%clk 0:01:26.1]} 25.
Kf2 {[%clk 0:00:57.9]} 25... Rd4 {[%clk 0:01:26.1]} 26. Ke3 {[%clk 0:00:54.7]}
26... c5 {[%clk 0:01:23.2]} 27. c3 {[%clk 0:00:50.3]} 27... Rd6 {[%clk
0:01:19.5]} 28. Nf2 {[%clk 0:00:36.4]} 28... Rxd2 {[%clk 0:01:19.8]} 29. Rxd2
{[%clk 0:00:38.3]} 29... c4 {[%clk 0:01:19.4]} 30. Ng4 {[%clk 0:00:30.3]} 30...
h5 {[%clk 0:01:20.4]} 31. Nf2 {[%clk 0:00:29.7]} 31... Nc5 {[%clk 0:01:17.1]}
32. Rd1 {[%clk 0:00:28.8]} 32... Na4 {[%clk 0:01:15.8]} 33. Rd2 {[%clk
0:00:28.9]} 33... Rc8 {[%clk 0:01:12.3]} 34. Ke2 {[%clk 0:00:28.2]} 34... Rf8
{[%clk 0:01:12.4]} 35. Ke3 {[%clk 0:00:29.2]} 35... g5 {[%clk 0:01:13.3]} 36.
Ke2 {[%clk 0:00:28.1]} 36... Nc5 {[%clk 0:01:14.3]} 37. Ke3 {[%clk 0:00:28.9]}
37... Nb3 {[%clk 0:01:15.2]} 38. Rd1 {[%clk 0:00:28.4]} 38... Rc8 {[%clk
0:01:13.1]} 39. Ke2 {[%clk 0:00:29.4]} 39... b4 {[%clk 0:00:49.1]} 40. cxb4
{[%clk 0:00:25.7]} 40... c3 {[%clk 0:00:49.7]} 41. bxc3 {[%clk 0:00:26.8]} 41...
Rxc3 {[%clk 0:00:46.3]} 42. Kf1 {[%clk 0:00:25.4]} 42... Nd4 {[%clk 0:00:38.2]}
43. Rd3 {[%clk 0:00:22.3]} 43... Rc1+ {[%clk 0:00:35.9]} 44. Rd1 {[%clk
0:00:22.9]} 44... Rc2 {[%clk 0:00:37.5]} 45. Ra1 {[%clk 0:00:21.3]} 45... Kf6
{[%clk 0:00:36.2]} 46. a4 {[%clk 0:00:22.1]} 46... Nb3 {[%clk 0:00:36.9]} 47.
Ra3 {[%clk 0:00:21.7]} 47... Nd4 {[%clk 0:00:35.1]} 48. a5 {[%clk 0:00:21.7]}
48... Rc1+ {[%clk 0:00:34.1]} 49. Nd1 {[%clk 0:00:22]} 49... Rxd1+ {[%clk
0:00:35.2]} 50. Kf2 {[%clk 0:00:23.9]} 50... Rb1 {[%clk 0:00:36.8]} 51. a6
{[%clk 0:00:15.4]} 51... bxa6 {[%clk 0:00:37.1]} 52. Rxa6 {[%clk 0:00:17.3]}
52... Rb2+ {[%clk 0:00:37.5]} 53. Kg3 {[%clk 0:00:16.6]} 53... Rxb4 {[%clk
0:00:37.9]} 54. Ra8 {[%clk 0:00:17.2]} 54... Ne2+ {[%clk 0:00:38.1]} 55. Kh2
{[%clk 0:00:18]} 55... Rb2 {[%clk 0:00:38.2]} 56. h4 {[%clk 0:00:18.3]} 56...
Nf4 {[%clk 0:00:38.1]} 57. hxg5+ {[%clk 0:00:19.2]} 57... Kxg5 {[%clk
0:00:39.3]} 58. Rg8+ {[%clk 0:00:19.6]} 58... Kf6 {[%clk 0:00:40.5]} 59. Kh1
{[%clk 0:00:18.3]} 59... h4 {[%clk 0:00:38.8]} 60. g3 {[%clk 0:00:17.1]} 60...
hxg3 {[%clk 0:00:37.6]} 61. Rxg3 {[%clk 0:00:19]} 61... Ke7 {[%clk 0:00:38.8]}
62. Rg5 {[%clk 0:00:19.7]} 62... Kd6 {[%clk 0:00:40]} 63. Rg8 {[%clk 0:00:20.3]}
63... Kc5 {[%clk 0:00:40.8]} 64. Rd8 {[%clk 0:00:21.1]} 64... Kc4 {[%clk
0:00:40.3]} 65. Kg1 {[%clk 0:00:21.1]} 65... Kc3 {[%clk 0:00:39.9]} 66. Kf1
{[%clk 0:00:21.1]} 66... Rd2 {[%clk 0:00:38.5]} 67. Ra8 {[%clk 0:00:18.4]} 67...
Rc2 {[%clk 0:00:33.6]} 68. Ra5 {[%clk 0:00:19.5]} 68... Kd4 {[%clk 0:00:34.3]}
69. Kg1 {[%clk 0:00:18.9]} 69... Ke3 {[%clk 0:00:33.4]} 70. Rxe5 {[%clk
0:00:18.5]} 70... Kxf3 {[%clk 0:00:32.8]} 71. Ra5 {[%clk 0:00:17.4]} 71... Rc1+
{[%clk 0:00:22]} 72. Kh2 {[%clk 0:00:17.5]} 72... Rc2+ {[%clk 0:00:23.1]} 73.
Kh1 {[%clk 0:00:18.8]} 73... Kxe4 {[%clk 0:00:24.4]} 74. Ra4+ {[%clk 0:00:19.9]}
74... Kf3 {[%clk 0:00:24.6]} 75. Ra3+ {[%clk 0:00:20.6]} 75... Kg4 {[%clk
0:00:25.2]} 76. Rb3 {[%clk 0:00:21.6]} 76... e5 {[%clk 0:00:25.9]} 77. Re3
{[%clk 0:00:23.1]} 77... Kf5 {[%clk 0:00:26.5]} 78. Kg1 {[%clk 0:00:22.6]} 78...
e4 {[%clk 0:00:25.9]} 79. Ra3 {[%clk 0:00:23.5]} 79... Nd3 {[%clk 0:00:27]} 80.
Ra8 {[%clk 0:00:23.3]} 80... Kf4 {[%clk 0:00:28]} 81. Rh8 {[%clk 0:00:22.6]}
81... Kg3 {[%clk 0:00:26.9]} 82. Rg8+ {[%clk 0:00:23.2]} 82... Kf3 {[%clk
0:00:28.5]} 83. Rf8+ {[%clk 0:00:24]} 83... Nf4 {[%clk 0:00:29.8]} 84. Ra8
{[%clk 0:00:18.4]} 84... e3 {[%clk 0:00:30.9]} 85. Ra3 {[%clk 0:00:19]} 85...
Rd2 {[%clk 0:00:21.7]} 86. Kh1 {[%clk 0:00:18.5]} 86... Kf2 {[%clk 0:00:18.6]}
87. Ra4 {[%clk 0:00:18.8]} 87... e2 {[%clk 0:00:17.2]} 88. Rxf4+ {[%clk
0:00:17.6]} 88... Ke3 {[%clk 0:00:18.7]} 89. Rf3+ {[%clk 0:00:10.6]} 89... Kxf3
{[%clk 0:00:18.3]} 0-1

[Event "*** Titled Tuesday 3|2 Blitz"]
[Site "Chess.com"]
[Date "2016.05.03"]
[Round "1"]
[White "stuffings101"]
[Black "E-Shaposhnikov"]
[Result "0-1"]
[WhiteElo "2105"]
[BlackElo "2477"]
[TimeControl "180+2"]
[EndTime "11:13:19 PDT"]
[Termination "E-Shaposhnikov won by resignation"]

1. Nf3 {[%clk 0:02:53.6]} 1... c5 {[%clk 0:02:57.3]} 2. g3 {[%clk 0:02:54.7]}
2... Nc6 {[%clk 0:02:52.7]} 3. Bg2 {[%clk 0:02:54.8]} 3... g6 {[%clk 0:02:52.2]}
4. O-O {[%clk 0:02:54.6]} 4... Bg7 {[%clk 0:02:52.5]} 5. d3 {[%clk 0:02:54.5]}
5... d5 {[%clk 0:02:52.1]} 6. c3 {[%clk 0:02:55.6]} 6... Nf6 {[%clk 0:02:50.1]}
7. Qa4 {[%clk 0:02:53.8]} 7... O-O {[%clk 0:02:50.4]} 8. Na3 {[%clk 0:02:53.6]}
8... e6 {[%clk 0:02:44.1]} 9. Re1 {[%clk 0:02:41.2]} 9... a6 {[%clk 0:02:42.1]}
10. e4 {[%clk 0:02:35.5]} 10... Bd7 {[%clk 0:02:20.3]} 11. Qb3 {[%clk
0:02:35.2]} 11... b5 {[%clk 0:02:13.3]} 12. Bg5 {[%clk 0:02:34.8]} 12... c4
{[%clk 0:02:10.6]} 13. dxc4 {[%clk 0:02:30.4]} 13... dxc4 {[%clk 0:02:07]} 14.
Qd1 {[%clk 0:02:26.8]} 14... Qc7 {[%clk 0:01:59]} 15. Nc2 {[%clk 0:02:19.7]}
15... h6 {[%clk 0:01:56.8]} 16. Bf4 {[%clk 0:02:19.5]} 16... e5 {[%clk
0:01:56.7]} 17. Bd2 {[%clk 0:02:10.7]} 17... Rad8 {[%clk 0:01:57.4]} 18. Qe2
{[%clk 0:02:03.3]} 18... Be6 {[%clk 0:01:51.3]} 19. a4 {[%clk 0:02:00.1]} 19...
Na5 {[%clk 0:01:49.6]} 20. axb5 {[%clk 0:01:59.2]} 20... axb5 {[%clk 0:01:48.9]}
21. Nb4 {[%clk 0:01:57]} 21... Nb3 {[%clk 0:01:48.2]} 22. Rad1 {[%clk 0:01:40]}
22... Nd7 {[%clk 0:01:37.4]} 23. Be3 {[%clk 0:01:37.6]} 23... Ndc5 {[%clk
0:01:35.5]} 24. Bxc5 {[%clk 0:01:37.9]} 24... Nxc5 {[%clk 0:01:35.2]} 25. Qe3
{[%clk 0:01:20.9]} 25... Na4 {[%clk 0:01:30.6]} 26. Qe2 {[%clk 0:01:13.4]} 26...
Rxd1 {[%clk 0:01:23.7]} 27. Rxd1 {[%clk 0:01:13.3]} 27... Rd8 {[%clk 0:01:23.9]}
28. Rxd8+ {[%clk 0:00:51.1]} 28... Qxd8 {[%clk 0:01:25.8]} 29. Ne1 {[%clk
0:00:50.4]} 29... h5 {[%clk 0:01:21.2]} 30. Nd5 {[%clk 0:00:44.9]} 30... Bh6
{[%clk 0:01:14]} 31. h4 {[%clk 0:00:38.5]} 31... Bc1 {[%clk 0:01:06.4]} 32. Nf3
{[%clk 0:00:31.1]} 32... f6 {[%clk 0:00:46.4]} 33. Qd1 {[%clk 0:00:13.8]} 33...
Bxb2 {[%clk 0:00:42.6]} 34. Qd2 {[%clk 0:00:11.7]} 34... Kg7 {[%clk 0:00:37.3]}
35. Ne1 {[%clk 0:00:07.2]} 35... Bxc3 {[%clk 0:00:37.4]} 36. Qd1 {[%clk
0:00:06.6]} 36... Bd4 {[%clk 0:00:25.2]} 37. Nc2 {[%clk 0:00:07]} 37... Bxd5
{[%clk 0:00:23.5]} 38. Nxd4 {[%clk 0:00:05]} 38... exd4 {[%clk 0:00:21.7]} 39.
Qxd4 {[%clk 0:00:05.9]} 39... c3 {[%clk 0:00:22.2]} 40. exd5 {[%clk 0:00:06.1]}
40... c2 {[%clk 0:00:23.1]} 41. Qd2 {[%clk 0:00:07.1]} 41... Qc7 {[%clk
0:00:23.3]} 42. Qc1 {[%clk 0:00:06.9]} 42... Qc3 {[%clk 0:00:23.9]} 43. Be4
{[%clk 0:00:07.8]} 43... b4 {[%clk 0:00:17.5]} 44. Qxc2 {[%clk 0:00:08.9]} 44...
Qxc2 {[%clk 0:00:18.3]} 45. Bxc2 {[%clk 0:00:10.5]} 45... Nc5 {[%clk 0:00:17.7]}
46. Kf1 {[%clk 0:00:10.7]} 46... b3 {[%clk 0:00:18.6]} 47. Bb1 {[%clk
0:00:10.6]} 47... Na4 {[%clk 0:00:19.6]} 48. Ke1 {[%clk 0:00:10.1]} 48... Nc3
{[%clk 0:00:20.7]} 49. d6 {[%clk 0:00:10.7]} 49... Kf8 {[%clk 0:00:18.1]} 50.
Bxg6 {[%clk 0:00:11.6]} 50... b2 {[%clk 0:00:17.4]} 51. Kd2 {[%clk 0:00:11.2]}
51... b1=Q {[%clk 0:00:18.1]} 52. Bxb1 {[%clk 0:00:12.3]} 52... Nxb1+ {[%clk
0:00:20]} 53. Kc2 {[%clk 0:00:13.5]} 53... Na3+ {[%clk 0:00:20.1]} 54. Kb3
{[%clk 0:00:13.5]} 54... Nb5 {[%clk 0:00:21]} 55. d7 {[%clk 0:00:13.9]} 55...
Ke7 {[%clk 0:00:21.8]} 56. Kc4 {[%clk 0:00:15.8]} 56... Nd6+ {[%clk 0:00:22.9]}
57. Kd4 {[%clk 0:00:14.9]} 57... Kxd7 {[%clk 0:00:24.8]} 58. Ke3 {[%clk
0:00:16.4]} 58... Ke6 {[%clk 0:00:25.2]} 59. Kf4 {[%clk 0:00:18.3]} 59... Nf5
{[%clk 0:00:23.3]} 60. f3 {[%clk 0:00:18.6]} 60... Ne7 {[%clk 0:00:21.3]} 61. g4
{[%clk 0:00:19.4]} 61... Ng6+ {[%clk 0:00:22]} 62. Kg3 {[%clk 0:00:20.1]} 62...
Ne7 {[%clk 0:00:21.3]} 63. Kf4 {[%clk 0:00:20.8]} 63... Nd5+ {[%clk 0:00:21.8]}
64. Ke4 {[%clk 0:00:21.9]} 64... Nc3+ {[%clk 0:00:21]} 65. Kd3 {[%clk
0:00:22.1]} 65... Nb5 {[%clk 0:00:21.1]} 66. Ke4 {[%clk 0:00:23.1]} 66... Nd6+
{[%clk 0:00:18.7]} 67. Kf4 {[%clk 0:00:24.3]} 67... Kf7 {[%clk 0:00:19.7]} 68.
gxh5 {[%clk 0:00:20]} 68... Kg7 {[%clk 0:00:20.6]} 69. Kg3 {[%clk 0:00:16.3]}
69... Kh6 {[%clk 0:00:20.8]} 70. Kg4 {[%clk 0:00:17.6]} 70... Kh7 {[%clk
0:00:20.7]} 71. Kg3 {[%clk 0:00:18.7]} 71... Kg7 {[%clk 0:00:21.8]} 72. Kf4
{[%clk 0:00:19.7]} 72... Kf7 {[%clk 0:00:17.5]} 73. Kg4 {[%clk 0:00:20.5]} 73...
Ne8 {[%clk 0:00:15.2]} 74. Kf5 {[%clk 0:00:19.7]} 74... Ng7+ {[%clk 0:00:15.9]}
75. Kg4 {[%clk 0:00:20.8]} 75... Ne8 {[%clk 0:00:15.8]} 76. Kf5 {[%clk
0:00:20.6]} 76... Nd6+ {[%clk 0:00:15.3]} 77. Kf4 {[%clk 0:00:21.5]} 77... Ke6
{[%clk 0:00:16.5]} 78. Kg4 {[%clk 0:00:19]} 78... Nf7 {[%clk 0:00:17.5]} 79. Kf4
{[%clk 0:00:17.8]} 79... Nh6 {[%clk 0:00:17.5]} 80. Ke4 {[%clk 0:00:19.1]} 80...
f5+ {[%clk 0:00:18.5]} 81. Kf4 {[%clk 0:00:12.5]} 81... Kf6 {[%clk 0:00:19.1]}
82. Kg3 {[%clk 0:00:09.8]} 82... Ke5 {[%clk 0:00:19.8]} 83. Kf2 {[%clk 0:00:09]}
83... Kf4 {[%clk 0:00:19.1]} 84. Kg2 {[%clk 0:00:09.2]} 84... Ke3 {[%clk
0:00:19.9]} 85. Kg3 {[%clk 0:00:09.9]} 85... f4+ {[%clk 0:00:20.6]} 86. Kg2
{[%clk 0:00:10.7]} 86... Ke2 {[%clk 0:00:21.8]} 87. Kh3 {[%clk 0:00:07.7]} 87...
Kxf3 {[%clk 0:00:22.8]} 88. Kh2 {[%clk 0:00:08.9]} 88... Kg4 {[%clk 0:00:23.9]}
0-1

[Event "*** Titled Tuesday 3|2 Blitz"]
[Site "Chess.com"]
[Date "2016.05.03"]
[Round "2"]
[White "Hikaru"]
[Black "ChessWarrior7197"]
[Result "1-0"]
[WhiteElo "2870"]
[BlackElo "2501"]
[TimeControl "180+2"]
[EndTime "11:17:50 PDT"]
[Termination "Hikaru won by resignation"]

1. d4 {[%clk 0:03:01.9]} 1... Nf6 {[%clk 0:03:00.1]} 2. Bg5 {[%clk 0:03:01.9]}
2... e6 {[%clk 0:02:58.3]} 3. Nd2 {[%clk 0:03:00.4]} 3... d5 {[%clk 0:02:56]} 4.
e4 {[%clk 0:02:59.7]} 4... dxe4 {[%clk 0:02:51.7]} 5. Nxe4 {[%clk 0:03:01.6]}
5... Nbd7 {[%clk 0:02:49.5]} 6. Nf3 {[%clk 0:03:00.2]} 6... Be7 {[%clk
0:02:50.3]} 7. Nxf6+ {[%clk 0:02:56]} 7... Nxf6 {[%clk 0:02:51.3]} 8. c3 {[%clk
0:02:56]} 8... O-O {[%clk 0:02:52]} 9. Bd3 {[%clk 0:02:55.7]} 9... b6 {[%clk
0:02:50.2]} 10. Qe2 {[%clk 0:02:50.5]} 10... Bb7 {[%clk 0:02:50.6]} 11. O-O-O
{[%clk 0:02:52.1]} 11... h6 {[%clk 0:02:39.5]} 12. h4 {[%clk 0:02:52.7]} 12...
Nd5 {[%clk 0:02:34.8]} 13. Qe4 {[%clk 0:02:44.2]} 13... g6 {[%clk 0:01:56.9]}
14. Bxh6 {[%clk 0:02:45.1]} 14... Re8 {[%clk 0:01:41.8]} 15. c4 {[%clk
0:02:39.6]} 15... f5 {[%clk 0:01:22]} 16. Qxe6+ {[%clk 0:02:39.2]} 16... Kh7
{[%clk 0:01:20.6]} 17. Qf7+ {[%clk 0:02:36]} 17... Kxh6 {[%clk 0:01:20.6]} 18.
h5 {[%clk 0:02:37.6]} 18... Bg5+ {[%clk 0:01:13.3]} 19. Kb1 {[%clk 0:02:37.5]}
1-0

[Event "*** Titled Tuesday 3|2 Blitz"]
[Site "Chess.com"]
[Date "2016.05.03"]
[Round "2"]
[White "chito89"]
[Black "Inopov"]
[Result "1-0"]
[WhiteElo "2632"]
[BlackElo "2447"]
[TimeControl "180+2"]
[EndTime "11:18:09 PDT"]
[Termination "chito89 won by resignation"]

1. e4 {[%clk 0:03:01.5]} 1... e6 {[%clk 0:02:59.3]} 2. Qe2 {[%clk 0:03:00]} 2...
c5 {[%clk 0:02:58.4]} 3. g3 {[%clk 0:03:00.6]} 3... b6 {[%clk 0:02:59.1]} 4. Bg2
{[%clk 0:03:00.3]} 4... Bb7 {[%clk 0:03:00.7]} 5. Nf3 {[%clk 0:02:53.5]} 5... d6
{[%clk 0:03:01.3]} 6. O-O {[%clk 0:02:53.5]} 6... Nf6 {[%clk 0:03:01.8]} 7. Nc3
{[%clk 0:02:44.6]} 7... Nbd7 {[%clk 0:03:00.1]} 8. d4 {[%clk 0:02:44.6]} 8...
cxd4 {[%clk 0:03:00.5]} 9. Nxd4 {[%clk 0:02:46.2]} 9... a6 {[%clk 0:03:00.5]}
10. Rd1 {[%clk 0:02:47.1]} 10... Be7 {[%clk 0:03:00.2]} 11. e5 {[%clk
0:02:20.9]} 11... dxe5 {[%clk 0:02:58.1]} 12. Nxe6 {[%clk 0:02:16.7]} 12... fxe6
{[%clk 0:02:53.6]} 13. Bxb7 {[%clk 0:02:18.1]} 13... Ra7 {[%clk 0:02:52.2]} 14.
Bxa6 {[%clk 0:02:17.2]} 14... O-O {[%clk 0:02:49.3]} 15. Bc4 {[%clk 0:02:16.5]}
15... Kh8 {[%clk 0:02:50.1]} 16. Bxe6 {[%clk 0:02:13.9]} 16... Qe8 {[%clk
0:02:50]} 17. Be3 {[%clk 0:01:57.4]} 17... Nc5 {[%clk 0:02:46.5]} 18. Bh3 {[%clk
0:01:58.8]} 18... Qg6 {[%clk 0:02:40.4]} 19. Nd5 {[%clk 0:01:53.2]} 19... Nxd5
{[%clk 0:02:40.7]} 20. Rxd5 {[%clk 0:01:54.8]} 20... Bf6 {[%clk 0:02:22.8]} 21.
Rxc5 {[%clk 0:01:49.7]} 21... bxc5 {[%clk 0:02:24.4]} 22. Bxc5 {[%clk
0:01:51.2]} 22... Raa8 {[%clk 0:02:06.9]} 23. Bg2 {[%clk 0:01:50.9]} 23... Rac8
{[%clk 0:01:58.9]} 24. Bxf8 {[%clk 0:01:51.1]} 24... Rxf8 {[%clk 0:01:58.2]} 25.
a4 {[%clk 0:01:49.1]} 25... h5 {[%clk 0:01:55.6]} 26. a5 {[%clk 0:01:49.7]}
26... h4 {[%clk 0:01:52.8]} 27. Be4 {[%clk 0:01:45.7]} 1-0

[Event "*** Titled Tuesday 3|2 Blitz"]
[Site "Chess.com"]
[Date "2016.05.03"]
[Round "2"]
[White "exoticprincess"]
[Black "Smirnov_Pavel"]
[Result "1-0"]
[WhiteElo "2785"]
[BlackElo "2484"]
[TimeControl "180+2"]
[EndTime "11:18:28 PDT"]
[Termination "exoticprincess won by resignation"]

1. b3 {[%clk 0:02:58.6]} 1... Nf6 {[%clk 0:02:56.4]} 2. Bb2 {[%clk 0:02:59.7]}
2... e6 {[%clk 0:02:57.7]} 3. e3 {[%clk 0:02:59.6]} 3... d5 {[%clk 0:02:57.9]}
4. f4 {[%clk 0:03:00.5]} 4... c5 {[%clk 0:02:58.4]} 5. Nf3 {[%clk 0:03:01.9]}
5... Be7 {[%clk 0:02:55.1]} 6. Bb5+ {[%clk 0:03:01.9]} 6... Bd7 {[%clk 0:02:53]}
7. a4 {[%clk 0:03:02.4]} 7... O-O {[%clk 0:02:53.2]} 8. O-O {[%clk 0:03:03.5]}
8... Nc6 {[%clk 0:02:53.8]} 9. Qe1 {[%clk 0:03:01.9]} 9... Rc8 {[%clk
0:02:52.4]} 10. Bxc6 {[%clk 0:02:56.2]} 10... Bxc6 {[%clk 0:02:52.2]} 11. d3
{[%clk 0:02:56.3]} 11... d4 {[%clk 0:02:49.3]} 12. e4 {[%clk 0:02:50.4]} 12...
b6 {[%clk 0:02:41.9]} 13. Nbd2 {[%clk 0:02:50.4]} 13... a6 {[%clk 0:02:42.5]}
14. h3 {[%clk 0:02:50.1]} 14... b5 {[%clk 0:02:42.5]} 15. axb5 {[%clk
0:02:50.6]} 15... axb5 {[%clk 0:02:43.8]} 16. b4 {[%clk 0:02:48.5]} 16... cxb4
{[%clk 0:02:36.9]} 17. Nb3 {[%clk 0:02:45.2]} 17... Bb7 {[%clk 0:02:32.5]} 18.
Qf2 {[%clk 0:02:41.9]} 18... Nd7 {[%clk 0:02:11.7]} 19. Nfxd4 {[%clk 0:02:41.8]}
19... Nc5 {[%clk 0:02:06.8]} 20. Kh2 {[%clk 0:02:38.6]} 20... Nxb3 {[%clk
0:02:02.3]} 21. Nxb3 {[%clk 0:02:39.5]} 21... Qc7 {[%clk 0:02:02]} 22. Ra7
{[%clk 0:02:34.9]} 22... Qxc2 {[%clk 0:01:38.5]} 23. Qxc2 {[%clk 0:02:24.4]}
23... Rxc2 {[%clk 0:01:38.4]} 24. Be5 {[%clk 0:02:25.4]} 24... f6 {[%clk
0:01:18.7]} 25. Rxb7 {[%clk 0:02:26.4]} 25... fxe5 {[%clk 0:01:19.4]} 26. Rxe7
{[%clk 0:02:27.9]} 26... exf4 {[%clk 0:01:03.2]} 27. Nd4 {[%clk 0:02:28]} 1-0